fUST/lending_fUST_20240824
["ID","MTS","AMOUNT","RATE_DAILY","PERIOD"]
[335728848,1724466642899,-451.39342568,0.00013698,2]
[335728849,1724466642908,-500.0,0.00013698,2]
[335728850,1724466642918,-500.0,0.00013698,2]
[335728851,1724466642928,-3040.48,0.00013698,2]
[335728852,1724466642938,-1293.77,0.00013698,2]
[335728853,1724466642947,-665.67,0.00013698,2]
[335728854,1724466642957,-993.52,0.00013698,2]
[335728855,1724466642967,-1081.0,0.00013698,2]
[335728856,1724466642977,-500.0,0.00013698,2]
[335728857,1724466642987,-500.0,0.00013698,2]
[335728858,1724466642997,-500.0,0.00013698,2]
[335728859,1724466643007,-722.24,0.00013698,2]
[335728860,1724466643016,-948.56,0.00013698,2]
[335728861,1724466643027,-948.56,0.00013698,2]
[335728862,1724466643036,-948.56,0.00013698,2]
[335728863,1724466643046,-948.56,0.00013698,2]
[335728864,1724466643056,-500.0,0.00013698,2]
[335728865,1724466643067,-948.56,0.00013698,2]
[335728866,1724466643079,-601.83,0.00013698,2]
[335728867,1724466643088,-948.56,0.00013698,2]
[335728868,1724466643098,-948.56,0.00013698,2]
[335728869,1724466643107,-948.56,0.00013698,2]
[335728870,1724466643118,-948.56,0.00013698,2]
[335728871,1724466643127,-948.56,0.00013698,2]
[335728872,1724466643138,-948.56,0.00013698,2]
[335728873,1724466643148,-948.56,0.00013698,2]
[335728874,1724466643158,-579.9,0.00013698,2]
[335728875,1724466643168,-948.56,0.00013698,2]
[335728876,1724466643178,-948.56,0.00013698,2]
[335728877,1724466643187,-948.56,0.00013698,2]
[335728878,1724466643197,-948.56,0.00013698,2]
[335728879,1724466643207,-948.56,0.00013698,2]
[335728880,1724466643217,-948.56,0.00013698,2]
[335728881,1724466643226,-500.0,0.00013698,2]
[335728882,1724466643235,-948.56,0.00013698,2]
[335728883,1724466643245,-948.56,0.00013698,2]
[335728884,1724466643254,-948.56,0.00013698,2]
[335728885,1724466643264,-1302.1,0.00013698,2]
[335728886,1724466643276,-948.56,0.00013698,2]
[335728887,1724466643285,-948.56,0.00013698,2]
[335728888,1724466643295,-500.0,0.00013698,2]
[335728889,1724466643304,-948.64,0.00013698,2]
[335728890,1724466643315,-1779.05,0.00013698,2]
[335728891,1724466643326,-443.15499385,0.00013698,2]
[335728892,1724466643336,-500.0,0.00013698,2]
[335728893,1724466643349,-500.0,0.00013698,2]
[335728894,1724466643359,-500.0,0.00013698,2]
[335728895,1724466643369,-500.0,0.00013698,2]
[335728896,1724466643378,-502.86105163,0.00013698,2]
[335728897,1724466643388,-500.0,0.00013698,2]
[335728898,1724466643398,-500.0,0.00013698,2]
[335728899,1724466643407,-500.0,0.00013698,2]
[335728900,1724466643419,-500.0,0.00013698,2]
[335728901,1724466643428,-509.18196234,0.00013698,2]
[335728902,1724466643438,-689.73,0.00013698,2]
[335728903,1724466643448,-500.0,0.00013698,2]
[335728904,1724466643458,-500.0,0.00013698,2]
[335728905,1724466643467,-500.0,0.00013698,2]
[335728906,1724466643476,-500.0,0.00013698,2]
[335728907,1724466643485,-500.0,0.00013698,2]
[335728909,1724466643496,-500.80362181,0.00013698,2]
[335728910,1724466643505,-500.0,0.00013698,2]
[335728911,1724466643514,-500.0,0.00013698,2]
[335728912,1724466643524,-500.0,0.00013698,2]
[335728913,1724466643533,-474.29123879,0.00013698,2]
[335728914,1724466643543,-500.0,0.00013698,2]
[335728916,1724466643552,-807.8,0.00013698,2]
[335728918,1724466643562,-500.0,0.00013698,2]
[335728921,1724466643571,-500.0,0.00013698,2]
[335728923,1724466643581,-500.0,0.00013698,2]
[335728925,1724466643591,-500.0,0.00013698,2]
[335728927,1724466643600,-500.0,0.00013698,2]
[335728929,1724466643610,-500.0,0.00013698,2]
[335728931,1724466643620,-500.0,0.00013698,2]
[335728934,1724466643629,-880.07,0.00013698,2]
[335728936,1724466643638,-500.0,0.00013698,2]
[335728938,1724466643648,-3308.33,0.00013698,2]
[335728940,1724466643658,-500.0,0.00013698,2]
[335728941,1724466643667,-566.86701025,0.00013698,2]
[335728943,1724466643676,-500.0,0.00013698,2]
[335728945,1724466643687,-501.5733447,0.00013698,2]
[335728947,1724466643698,-897.43,0.00013698,2]
[335728948,1724466643708,-500.0,0.00013698,2]
[335728949,1724466643718,-500.0,0.00013698,2]
[335728950,1724466643727,-500.0,0.00013698,2]
[335728951,1724466643737,-430.44001007,0.00013698,2]
[335728953,1724466643747,-500.0,0.00013698,2]
[335728955,1724466643757,-500.42181622,0.00013698,2]
[335728957,1724466643768,-500.0,0.00013698,2]
[335728959,1724466643777,-500.0,0.00013698,2]
[335728961,1724466643787,-3011.33,0.00013698,2]
[335728963,1724466643796,-500.0,0.00013698,2]
[335728965,1724466643805,-568.68,0.00013698,2]
[335728967,1724466643814,-500.0,0.00013698,2]
[335728969,1724466643824,-1094.73,0.00013698,2]
[335728971,1724466643834,-500.0,0.00013698,2]
[335728973,1724466643843,-500.0,0.00013698,2]
[335728974,1724466643852,-500.0,0.00013698,2]
[335728976,1724466643861,-543.57,0.00013698,2]
[335728978,1724466643872,-451.02923329,0.00013698,2]
[335728980,1724466643881,-826.35,0.00013698,2]
[335728982,1724466643890,-500.0,0.00013698,2]
[335728984,1724466643900,-500.0,0.00013698,2]
[335728986,1724466643909,-500.0,0.00013698,2]
[335728988,1724466643918,-253.09911784,0.00013698,2]
[335728990,1724466643927,-500.0,0.00013698,2]
[335728992,1724466643937,-500.0,0.00013698,2]
[335728994,1724466643946,-500.0,0.00013698,2]
[335728996,1724466643955,-501.11720891,0.00013698,2]
[335728998,1724466643965,-332.92760639,0.00013698,2]
[335729000,1724466643974,-500.0,0.00013698,2]
[335729001,1724466643984,-524.03413021,0.00013698,2]
[335729003,1724466643993,-500.0,0.00013698,2]
[335729006,1724466644002,-500.0,0.00013698,2]
[335729009,1724466644012,-500.0,0.00013698,2]
[335729012,1724466644022,-500.0,0.00013698,2]
[335729015,1724466644031,-987.32,0.00013698,2]
[335729019,1724466644041,-2833.87,0.00013698,2]
[335729022,1724466644053,-500.0,0.00013698,2]
[335729024,1724466644064,-576.47,0.00013698,2]
[335729026,1724466644073,-500.0,0.00013698,2]
[335729028,1724466644083,-500.0,0.00013698,2]
[335729030,1724466644094,-500.18172759,0.00013698,2]
[335729032,1724466644104,-500.0,0.00013698,2]
[335729034,1724466644113,-586.35,0.00013698,2]
[335729036,1724466644123,-500.0,0.00013698,2]
[335729038,1724466644133,-500.0,0.00013698,2]
[335729040,1724466644142,-500.0,0.00013698,2]
[335729042,1724466644152,-500.0,0.00013698,2]
[335729044,1724466644162,-500.0,0.00013698,2]
[335729046,1724466644171,-500.0,0.00013698,2]
[335729047,1724466644180,-500.0,0.00013698,2]
[335729049,1724466644190,-500.0,0.00013698,2]
[335729051,1724466644199,-500.0,0.00013698,2]
[335729053,1724466644208,-500.0,0.00013698,2]
[335729055,1724466644218,-500.0,0.00013698,2]
[335729057,1724466644227,-763.37,0.00013698,2]
[335729059,1724466644237,-500.0,0.00013698,2]
[335729061,1724466644246,-500.0,0.00013698,2]
[335729063,1724466644255,-631.52,0.00013698,2]
[335729065,1724466644264,-207.3916535,0.00013698,2]
[335729067,1724466644275,-388.01515087,0.00013698,2]
[335729069,1724466644285,-500.0,0.00013698,2]
[335729070,1724466644294,-500.0,0.00013698,2]
[335729072,1724466644303,-500.0,0.00013698,2]
[335729074,1724466644312,-581.22,0.00013698,2]
[335729076,1724466644321,-500.0,0.00013698,2]
[335729078,1724466644331,-500.0,0.00013698,2]
[335729080,1724466644340,-500.0,0.00013698,2]
[335729082,1724466644352,-585.31,0.00013698,2]
[335729083,1724466644362,-508.13,0.00013698,2]
[335729085,1724466644371,-501.35155916,0.00013698,2]
[335729087,1724466644381,-500.0,0.00013698,2]
[335729089,1724466644391,-669.16,0.00013698,2]
[335729091,1724466644400,-719.91,0.00013698,2]
[335729093,1724466644409,-343.97804973,0.00013698,2]
[335729095,1724466644420,-500.0,0.00013698,2]
[335729097,1724466644429,-500.0,0.00013698,2]
[335729099,1724466644438,-2195.68,0.00013698,2]
[335729100,1724466644447,-500.0,0.00013698,2]
[335729102,1724466644456,-500.0,0.00013698,2]
[335729104,1724466644465,-500.0,0.00013698,2]
[335729106,1724466644475,-500.0,0.00013698,2]
[335729108,1724466644484,-500.0,0.00013698,2]
[335729110,1724466644493,-500.0,0.00013698,2]
[335729112,1724466644503,-500.0,0.00013698,2]
[335729114,1724466644513,-500.0,0.00013698,2]
[335729116,1724466644522,-1418.99,0.00013698,2]
[335729118,1724466644531,-500.0,0.00013698,2]
[335729120,1724466644540,-500.0,0.00013698,2]
[335729122,1724466644550,-500.0,0.00013698,2]
[335729123,1724466644559,-508.86163908,0.00013698,2]
[335729125,1724466644568,-562.79,0.00013698,2]
[335729127,1724466644578,-694.96,0.00013698,2]
[335729129,1724466644588,-500.0,0.00013698,2]
[335729131,1724466644598,-500.0,0.00013698,2]
[335729133,1724466644608,-500.9895342,0.00013698,2]
[335729135,1724466644618,-500.0,0.00013698,2]
[335729137,1724466644628,-503.11997067,0.00013698,2]
[335729139,1724466644637,-500.0,0.00013698,2]
[335729141,1724466644646,-500.0,0.00013698,2]
[335729143,1724466644655,-500.0,0.00013698,2]
[335729145,1724466644664,-500.0,0.00013698,2]
[335729146,1724466644675,-500.0,0.00013698,2]
[335729148,1724466644684,-509.55102606,0.00013698,2]
[335729150,1724466644693,-500.0,0.00013698,2]
[335729152,1724466644702,-1010.78,0.00013698,2]
[335729154,1724466644712,-500.0,0.00013698,2]
[335729156,1724466644721,-500.0,0.00013698,2]
[335729158,1724466644730,-500.0,0.00013698,2]
[335729160,1724466644740,-859.88,0.00013698,2]
[335729161,1724466644748,-449.81063824,0.00013698,2]
[335729163,1724466644759,-500.0,0.00013698,2]
[335729165,1724466644770,-500.0,0.00013698,2]
[335729167,1724466644779,-201.45629443,0.00013698,2]
[335729169,1724466644789,-500.0,0.00013698,2]
[335729171,1724466644798,-500.0,0.00013698,2]
[335729173,1724466644807,-1006.78,0.00013698,2]
[335729175,1724466644817,-500.77864388,0.00013698,2]
[335729177,1724466644827,-1520.93,0.00013698,2]
[335729179,1724466644837,-177.59616055,0.00013698,2]
[335729181,1724466644846,-675.71,0.00013698,2]
[335729183,1724466644856,-500.0,0.00013698,2]
[335729185,1724466644865,-500.0,0.00013698,2]
[335729186,1724466644875,-500.0,0.00013698,2]
[335729187,1724466644884,-1469.38,0.00013698,2]
[335729188,1724466644893,-500.0,0.00013698,2]
[335729189,1724466644902,-500.0,0.00013698,2]
[335729190,1724466644911,-500.0,0.00013698,2]
[335729191,1724466644920,-500.0,0.00013698,2]
[335729192,1724466644929,-500.0,0.00013698,2]
[335729193,1724466644939,-500.0,0.00013698,2]
[335729194,1724466644948,-500.0,0.00013698,2]
[335729195,1724466644958,-500.0,0.00013698,2]
[335729196,1724466644968,-181.13607056,0.00013698,2]
[335729197,1724466644977,-500.0,0.00013698,2]
[335729198,1724466644987,-787.27,0.00013698,2]
[335729199,1724466644996,-787.27,0.00013698,2]
[335729200,1724466645005,-787.27,0.00013698,2]
[335729201,1724466645014,-787.27,0.00013698,2]
[335729202,1724466645023,-787.27,0.00013698,2]
[335729203,1724466645033,-787.27,0.00013698,2]
[335729204,1724466645043,-787.27,0.00013698,2]
[335729205,1724466645052,-1758.87,0.00013698,2]
[335729206,1724466645061,-787.27,0.00013698,2]
[335729208,1724466645071,-787.27,0.00013698,2]
[335729209,1724466645080,-787.27,0.00013698,2]
[335729212,1724466645090,-500.0,0.00013698,2]
[335729214,1724466645099,-787.27,0.00013698,2]
[335729216,1724466645109,-787.27,0.00013698,2]
[335729218,1724466645118,-787.27,0.00013698,2]
[335729220,1724466645127,-627.12,0.00013698,2]
[335729221,1724466645136,-1321.08,0.00013698,2]
[335729223,1724466645145,-787.27,0.00013698,2]
[335729225,1724466645155,-787.27,0.00013698,2]
[335729227,1724466645165,-787.27,0.00013698,2]
[335729230,1724466645176,-500.0,0.00013698,2]
[335729231,1724466645185,-787.27,0.00013698,2]
[335729233,1724466645194,-787.27,0.00013698,2]
[335729235,1724466645204,-787.27,0.00013698,2]
[335729237,1724466645215,-787.27,0.00013698,2]
[335729239,1724466645224,-500.0,0.00013698,2]
[335729241,1724466645234,-787.27,0.00013698,2]
[335729243,1724466645243,-787.27,0.00013698,2]
[335729245,1724466645252,-500.0,0.00013698,2]
[335729247,1724466645262,-787.27,0.00013698,2]
[335729249,1724466645272,-787.3800038,0.00013698,2]
[335729251,1724466645281,-521.09788376,0.00013698,2]
[335729253,1724466645290,-500.0,0.00013698,2]
[335729255,1724466645299,-500.0,0.00013698,2]
[335729256,1724466645308,-500.0,0.00013698,2]
[335729258,1724466645318,-500.0,0.00013698,2]
[335729260,1724466645327,-500.0,0.00013698,2]
[335729262,1724466645337,-1254.01,0.00013698,2]
[335729264,1724466645350,-500.0,0.00013698,2]
[335729266,1724466645360,-514.01,0.00013698,2]
[335729268,1724466645369,-500.0,0.00013698,2]
[335729270,1724466645379,-500.0,0.00013698,2]
[335729272,1724466645389,-766.62,0.00013698,2]
[335729274,1724466645398,-500.0,0.00013698,2]
[335729276,1724466645407,-500.11097897,0.00013698,2]
[335729278,1724466645419,-1008.36,0.00013698,2]
[335729280,1724466645428,-500.0,0.00013698,2]
[335729282,1724466645437,-500.0,0.00013698,2]
[335729284,1724466645447,-500.0,0.00013698,2]
[335729286,1724466645456,-500.0,0.00013698,2]
[335729288,1724466645467,-2032.72,0.00013698,2]
[335729290,1724466645476,-500.0,0.00013698,2]
[335729292,1724466645485,-500.0,0.00013698,2]
[335729294,1724466645495,-500.0,0.00013698,2]
[335729296,1724466645504,-500.0,0.00013698,2]
[335729298,1724466645514,-500.0,0.00013698,2]
[335729300,1724466645524,-500.0,0.00013698,2]
[335729302,1724466645534,-500.0,0.00013698,2]
[335729304,1724466645546,-500.0,0.00013698,2]
[335729306,1724466645555,-500.0,0.00013698,2]
[335729308,1724466645566,-531.93,0.00013698,2]
[335729310,1724466645576,-509.13136748,0.00013698,2]
[335729312,1724466645585,-500.0,0.00013698,2]
[335729330,1724466645753,-500.0,0.00013698,2]
[335729332,1724466645763,-1421.72,0.00013698,2]
[335729334,1724466645773,-575.68528405,0.00013698,2]
[335729336,1724466645782,-500.0,0.00013698,2]
[335729338,1724466645792,-500.0,0.00013698,2]
[335729340,1724466645803,-1314.67,0.00013698,2]
[335729342,1724466645813,-2331.78,0.00013698,2]
[335729345,1724466645824,-599.98714986,0.00013698,2]
[335729346,1724466645833,-834.44,0.00013698,2]
[335729349,1724466645843,-500.0,0.00013698,2]
[335729351,1724466645853,-941.19,0.00013698,2]
[335729353,1724466645862,-500.0,0.00013698,2]
[335729355,1724466645872,-500.0,0.00013698,2]
[335729357,1724466645882,-500.0,0.00013698,2]
[335729359,1724466645891,-1134.66,0.00013698,2]
[335729361,1724466645901,-500.0,0.00013698,2]
[335729363,1724466645910,-500.0,0.00013698,2]
[335729365,1724466645920,-500.0,0.00013698,2]
[335729367,1724466645929,-500.0,0.00013698,2]
[335729369,1724466645939,-500.0,0.00013698,2]
[335729371,1724466645949,-193.80537047,0.00013698,2]
[335729373,1724466645958,-1108.81,0.00013698,2]
[335729375,1724466645968,-500.0,0.00013698,2]
[335729377,1724466645978,-856.98,0.00013698,2]
[335729379,1724466645987,-500.0,0.00013698,2]
[335729381,1724466645997,-500.0,0.00013698,2]
[335729383,1724466646007,-500.0,0.00013698,2]
[335729385,1724466646017,-1005.56,0.00013698,2]
[335729387,1724466646027,-772.08,0.00013698,2]
[335729389,1724466646037,-1114.9,0.00013698,2]
[335729391,1724466646047,-293.91923949,0.00013698,2]
[335729393,1724466646057,-500.0,0.00013698,2]
[335729395,1724466646066,-504.04700606,0.00013698,2]
[335729398,1724466646078,-908.31,0.00013698,2]
[335729400,1724466646087,-501.11184243,0.00013698,2]
[335729402,1724466646097,-500.0,0.00013698,2]
[335729404,1724466646107,-845.79,0.00013698,2]
[335729406,1724466646117,-500.0,0.00013698,2]
[335729408,1724466646127,-500.0,0.00013698,2]
[335729410,1724466646137,-500.0,0.00013698,2]
[335729412,1724466646147,-500.0,0.00013698,2]
[335729414,1724466646156,-1276.52,0.00013698,2]
[335729416,1724466646166,-896.1,0.00013698,2]
[335729418,1724466646176,-900.28,0.00013698,2]
[335729420,1724466646186,-500.0,0.00013698,2]
[335729422,1724466646196,-500.0,0.00013698,2]
[335729424,1724466646205,-1023.12,0.00013698,2]
[335729426,1724466646215,-500.0,0.00013698,2]
[335729428,1724466646225,-2016.11,0.00013698,2]
[335729430,1724466646235,-500.0,0.00013698,2]
[335729432,1724466646245,-500.0,0.00013698,2]
[335729434,1724466646255,-500.0,0.00013698,2]
[335729436,1724466646265,-549.43,0.00013698,2]
[335729438,1724466646274,-500.0,0.00013698,2]
[335729440,1724466646284,-500.0,0.00013698,2]
[335729442,1724466646295,-1593.9,0.00013698,2]
[335729444,1724466646307,-543.41771865,0.00013698,2]
[335729446,1724466646318,-500.0,0.00013698,2]
[335729449,1724466646336,-910.83,0.00013698,2]
[335729450,1724466646350,-500.0,0.00013698,2]
[335729453,1724466646361,-500.0,0.00013698,2]
[335729455,1724466646371,-500.0,0.00013698,2]
[335729458,1724466646380,-500.0,0.00013698,2]
[335729461,1724466646390,-1640.21,0.00013698,2]
[335729464,1724466646400,-500.0,0.00013698,2]
[335729467,1724466646409,-708.19,0.00013698,2]
[335729470,1724466646419,-955.53,0.00013698,2]
[335729472,1724466646431,-500.0,0.00013698,2]
[335729474,1724466646441,-500.0,0.00013698,2]
[335729476,1724466646451,-500.0,0.00013698,2]
[335729478,1724466646462,-1414.49,0.00013698,2]
[335729480,1724466646472,-500.0,0.00013698,2]
[335729482,1724466646481,-500.0,0.00013698,2]
[335729484,1724466646490,-500.0,0.00013698,2]
[335729486,1724466646500,-500.0,0.00013698,2]
[335729489,1724466646510,-500.0,0.00013698,2]
[335729490,1724466646519,-1341.7,0.00013698,2]
[335729492,1724466646529,-500.0,0.00013698,2]
[335729494,1724466646538,-500.0,0.00013698,2]
[335729496,1724466646547,-500.0,0.00013698,2]
[335729498,1724466646556,-500.0,0.00013698,2]
[335729500,1724466646566,-516.71,0.00013698,2]
[335729502,1724466646577,-500.0,0.00013698,2]
[335729505,1724466646589,-500.0,0.00013698,2]
[335729507,1724466646598,-500.0,0.00013698,2]
[335729508,1724466646608,-518.31460666,0.00013698,2]
[335729510,1724466646617,-500.0,0.00013698,2]
[335729512,1724466646626,-500.51934936,0.00013698,2]
[335729514,1724466646635,-500.0,0.00013698,2]
[335729516,1724466646645,-500.0,0.00013698,2]
[335729518,1724466646653,-500.0,0.00013698,2]
[335729519,1724466646663,-500.0,0.00013698,2]
[335729521,1724466646672,-500.0,0.00013698,2]
[335729523,1724466646681,-500.0,0.00013698,2]
[335729525,1724466646691,-500.0,0.00013698,2]
[335729527,1724466646700,-546.65,0.00013698,2]
[335729529,1724466646710,-500.0,0.00013698,2]
[335729531,1724466646719,-500.0,0.00013698,2]
[335729533,1724466646728,-500.0,0.00013698,2]
[335729535,1724466646737,-500.0,0.00013698,2]
[335729537,1724466646748,-500.0,0.00013698,2]
[335729539,1724466646757,-500.0,0.00013698,2]
[335729541,1724466646766,-500.0,0.00013698,2]
[335729543,1724466646775,-500.0,0.00013698,2]
[335729545,1724466646785,-500.0,0.00013698,2]
[335729547,1724466646794,-500.0,0.00013698,2]
[335729549,1724466646804,-500.0,0.00013698,2]
[335729551,1724466646813,-500.0,0.00013698,2]
[335729553,1724466646823,-447.60060409,0.00013698,2]
[335729555,1724466646840,-500.0,0.00013698,2]
[335729557,1724466646850,-1458.69,0.00013698,2]
[335729559,1724466646859,-787.22,0.00013698,2]
[335729562,1724466646869,-500.0,0.00013698,2]
[335729564,1724466646878,-500.0,0.00013698,2]
[335729566,1724466646888,-564.65068328,0.00013698,2]
[335729568,1724466646897,-3109.69,0.00013698,2]
[335729570,1724466646906,-500.0,0.00013698,2]
[335729572,1724466646915,-502.29850537,0.00013698,2]
[335729574,1724466646924,-500.0,0.00013698,2]
[335729576,1724466646933,-500.0,0.00013698,2]
[335729578,1724466646943,-500.0,0.00013698,2]
[335729580,1724466646953,-996.01,0.00013698,2]
[335729582,1724466646962,-500.0,0.00013698,2]
[335729584,1724466646971,-996.01,0.00013698,2]
[335729586,1724466646981,-996.01,0.00013698,2]
[335729588,1724466646991,-996.01,0.00013698,2]
[335729590,1724466647000,-999.53,0.00013698,2]
[335729592,1724466647009,-996.01,0.00013698,2]
[335729594,1724466647018,-996.01,0.00013698,2]
[335729596,1724466647028,-500.0,0.00013698,2]
[335729598,1724466647039,-996.01,0.00013698,2]
[335729600,1724466647048,-996.01,0.00013698,2]
[335729602,1724466647058,-996.01,0.00013698,2]
[335729604,1724466647068,-996.01,0.00013698,2]
[335729606,1724466647078,-996.01,0.00013698,2]
[335729608,1724466647087,-996.01,0.00013698,2]
[335729610,1724466647100,-996.01,0.00013698,2]
[335729612,1724466647110,-996.01,0.00013698,2]
[335729614,1724466647119,-996.01,0.00013698,2]
[335729616,1724466647129,-500.0,0.00013698,2]
[335729618,1724466647138,-996.01,0.00013698,2]
[335729620,1724466647148,-996.01,0.00013698,2]
[335729622,1724466647157,-1083.32,0.00013698,2]
[335729624,1724466647167,-500.0,0.00013698,2]
[335729626,1724466647176,-996.01,0.00013698,2]
[335729628,1724466647186,-500.0,0.00013698,2]
[335729630,1724466647196,-996.01,0.00013698,2]
[335729632,1724466647206,-996.01,0.00013698,2]
[335729634,1724466647216,-996.01,0.00013698,2]
[335729636,1724466647226,-862.77,0.00013698,2]
[335729638,1724466647236,-996.01,0.00013698,2]
[335729640,1724466647245,-996.01,0.00013698,2]
[335729643,1724466647255,-717.44,0.00013698,2]
[335729644,1724466647264,-996.0820789,0.00013698,2]
[335729646,1724466647273,-500.0,0.00013698,2]
[335729648,1724466647283,-705.05,0.00013698,2]
[335729650,1724466647292,-500.0,0.00013698,2]
[335729652,1724466647301,-500.0,0.00013698,2]
[335729654,1724466647311,-500.0,0.00013698,2]
[335729656,1724466647320,-500.0,0.00013698,2]
[335729658,1724466647330,-13357.91,0.00013698,2]
[335729660,1724466647341,-3703.66,0.00013698,2]
[335729662,1724466647352,-500.0,0.00013698,2]
[335729664,1724466647362,-500.0,0.00013698,2]
[335729666,1724466647371,-500.55269522,0.00013698,2]
[335729668,1724466647382,-500.0,0.00013698,2]
[335729670,1724466647392,-500.0,0.00013698,2]
[335729672,1724466647402,-500.0,0.00013698,2]
[335729674,1724466647411,-500.0,0.00013698,2]
[335729676,1724466647423,-6870.65,0.00013698,2]
[335729678,1724466647433,-531.27393272,0.00013698,2]
[335729680,1724466647443,-500.0,0.00013698,2]
[335729681,1724466647452,-524.40759916,0.00013698,2]
[335729683,1724466647461,-521.43,0.00013698,2]
[335729685,1724466647471,-502.68932578,0.00013698,2]
[335729686,1724466647480,-500.0,0.00013698,2]
[335729687,1724466647489,-987.1,0.00013698,2]
[335729688,1724466647499,-500.0,0.00013698,2]
[335729689,1724466647508,-500.0,0.00013698,2]
[335729690,1724466647518,-500.0,0.00013698,2]
[335729691,1724466647528,-1016.19,0.00013698,2]
[335729692,1724466647538,-3728.42,0.00013698,2]
[335729694,1724466647547,-1716.46,0.00013698,2]
[335729695,1724466647557,-500.0,0.00013698,2]
[335729697,1724466647566,-500.0,0.00013698,2]
[335729699,1724466647576,-500.0,0.00013698,2]
[335729700,1724466647585,-500.0,0.00013698,2]
[335729702,1724466647594,-1263.68,0.00013698,2]
[335729704,1724466647604,-501.78015045,0.00013698,2]
[335729706,1724466647613,-500.0,0.00013698,2]
[335729707,1724466647623,-734.82,0.00013698,2]
[335729708,1724466647632,-500.0,0.00013698,2]
[335729709,1724466647642,-582.81026484,0.00013698,2]
[335729710,1724466647651,-2142.23,0.00013698,2]
[335729711,1724466647661,-442.44977797,0.00013698,2]
[335729712,1724466647670,-1009.95,0.00013698,2]
[335729713,1724466647679,-9810.98,0.00013698,2]
[335729714,1724466647689,-1303.58,0.00013698,2]
[335729715,1724466647698,-1303.47,0.00013698,2]
[335729716,1724466647708,-500.0,0.00013698,2]
[335729717,1724466647719,-500.0,0.00013698,2]
[335729718,1724466647728,-500.0,0.00013698,2]
[335729719,1724466647738,-1425.97,0.00013698,2]
[335729720,1724466647747,-1163.79,0.00013698,2]
[335729721,1724466647756,-2367.48,0.00013698,2]
[335729722,1724466647766,-696.73,0.00013698,2]
[335729723,1724466647776,-500.0,0.00013698,2]
[335729724,1724466647785,-500.0,0.00013698,2]
[335729725,1724466647795,-500.0,0.00013698,2]
[335729726,1724466647804,-590.98,0.00013698,2]
[335729727,1724466647814,-615.94,0.00013698,2]
[335729728,1724466647823,-500.0,0.00013698,2]
[335729729,1724466647834,-11900.57,0.00013698,2]
[335729730,1724466647843,-504.91863653,0.00013698,2]
[335729731,1724466647853,-4651.09,0.00013698,2]
[335729732,1724466647862,-411.68077222,0.00013698,2]
[335729733,1724466647871,-500.0,0.00013698,2]
[335729734,1724466647881,-762.63,0.00013698,2]
[335729735,1724466647890,-500.0,0.00013698,2]
[335729736,1724466647899,-500.0,0.00013698,2]
[335729737,1724466647908,-500.0,0.00013698,2]